Cogmind - Beta 13 @@@ ROGUE MODE // 2024.04.21 @ 19:00:02 Player: Oldman Pu Result: Destroyed by PZ-R0D(R) with Subdweller Laser Performance ------------- Evolutions (0) 0 Regions Visited (2) 400 Robots Destroyed (21) 105 Value Destroyed (438) 438 Prototype IDs (0) 0 Alien Tech Used (0) 0 Bonus (0) 0 TOTAL SCORE: 943 Bonus ------- None Cogmind --------- Core Integrity 0/250 Matter 285/300 Energy 134/250 System Corruption 4% Temperature Cool (8) Movement Core (850) Ox16 Location -10/Subcaves Parts ------- > --- POWER (1) -------- Ion Engine > --- PROPULSION (2) --- (None) > --- UTILITY (2) ------ High-capacity Storage Unit > --- WEAPON (2) ------- Medium Laser Spread Laser > --- INVENTORY (20) --- Light Ion Engine Light Nuclear Core Core Shielding Hardened Light Armor Plating Hardened Light Armor Plating Hardened Light Armor Plating Hardened Light Armor Plating Small Laser Particle Gun Spread Laser Spread Laser Spread Laser Particle Cannon Particle Cannon Particle Cannon Particle Cannon Peak State ------------ > --- POWER ------------ Ion Engine > --- PROPULSION ------- Wheel Compact Wheel > --- UTILITY ---------- Improved Heat Sink High-capacity Storage Unit > --- WEAPON ----------- Spread Laser Spread Laser > --- INVENTORY -------- Light Ion Engine Light Nuclear Core Core Shielding Hardened Light Armor Plating Hardened Light Armor Plating Hardened Light Armor Plating Hardened Light Armor Plating Medium Laser Small Laser Particle Gun Spread Laser Spread Laser [Rating: 13] Favorites ----------- Power Ion Engine Engine Ion Engine Propulsion Compact Wheel Wheel Compact Wheel Utility Hacking Suite Device Improved Heat Sink Storage Large Storage Unit Hackware Hacking Suite Weapon Medium Laser Energy Gun Medium Laser Ballistic Gun Assault Rifle Build | -11 -10 -10 ------- Run | Yrd Mat Sub Slots Evolved . | . . . Power . | . . . Propulsion . | . . . Utility . | . . . Weapon . | . . . Parts Attached 21 | 6 14 1 Power 4 | 1 3 . Engine 4 | 1 3 . Core . | . . . Reactor . | . . . Propulsion 5 | 2 3 . Treads . | . . . Leg . | . . . Wheel 5 | 2 3 . Hover . | . . . Flight . | . . . Utility 5 | 1 4 . Device 1 | . 1 . Storage 3 | 1 2 . Processor . | . . . Hackware 1 | . 1 . Protection . | . . . Artifact . | . . . Weapon 7 | 2 4 1 Energy Gun 5 | 1 3 1 Energy Cannon . | . . . Ballistic Gun 2 | 1 1 . Ballistic Cannon . | . . . Launcher . | . . . Special Weapon . | . . . Impact Weapon . | . . . Slashing Weapon . | . . . Piercing Weapon . | . . . Special Melee Weapon . | . . . Unidentified Prototypes . | . . . Parts Lost 7 | . 4 3 Power 1 | . 1 . Propulsion 4 | . 2 2 Utility 1 | . . 1 Weapon 1 | . 1 . Highest Loss Streak 3 | . 3 2 To Critical Strikes . | . . . Average Slot Usage (%) 97 | . 98 91 Engine 13 | . 13 14 Wheel 26 | . 27 20 Device 4 | . 3 14 Storage 14 | . 14 14 Hackware 8 | . 10 . Energy Gun 19 | . 18 28 Ballistic Gun 8 | . 9 . Naked Turns . | . . . Heaviest Build 52 | 13 52 52 Greatest Support 32 | 32 32 26 Greatest Overweight (x) 7 | . 7 3 Average Overweight (x) . | . . 1 Largest Inventory Capacity 20 | 8 20 20 Average Capacity 15 | 7 14 20 Most Carried 16 | . 16 16 Average Carried 6 | . 5 16 Final Capacity 20 | 8 20 20 Final Carried 16 | . 16 16 Class Distribution -------------------- 100% | Mutant Dominant Class ---------------- Mutant | -10/Materials Mutant | -10/Subcaves Resources | -11 -10 -10 ----------- Run | Yrd Mat Sub Matter Collected 561 | 190 371 . Remotely . | . . . Salvage Created 597 | . 597 . Parts 35 | . 35 . Haulers Intercepted 1 | . 1 . Recyclers Shooed . | . . . Parts Field Recycled . | . . . Retrieved Matter . | . . . Parts Self-Destructed 11 | . . 11 Prevented . | . . . Kills | -11 -10 -10 ------- Run | Yrd Mat Sub Combat Hostiles Destroyed 14 | . 14 . Guns 14 | . 14 . Classes Destroyed 6 | . 6 . Worker 1 | . 1 . Hauler 1 | . 1 . Operator 2 | . 2 . Watcher 3 | . 3 . Swarmer 6 | . 6 . Grunt 8 | . 8 . Best Kill Streak 3 | . 3 . Combat Bots Only 3 | . 3 . Max Kills in Single Turn 1 | . 1 . Gunslinging . | . . . Exploded . | . . . Melee . | . . . Uniques/NPCs Destroyed . | . . . Combat | -11 -10 -10 -------- Run | Yrd Mat Sub Hostile Shots Fired 88 | . 62 26 Missed 19 | . 10 9 Damage Taken 842 | . 505 337 Core 267 | . 130 137 Absorbed by Shields . | . . . Core Remaining (%) 100 | 100 . . Volleys Fired 77 | . 62 15 Largest 2 | . 2 2 Hottest 130 | . 130 130 Shots Fired 154 | . 123 31 Gun 154 | . 123 31 Cannon . | . . . Launcher . | . . . Special . | . . . Kinetic 48 | . 48 . Thermal 106 | . 75 31 Explosive . | . . . Electromagnetic . | . . . Robot Hit Streak 19 | . 14 19 Robot Miss Streak 3 | . 3 3 Penetration Max . | . . . Secondary Targets . | . . . Shots Hit Robots 113 | . 82 31 Core Hits 39 | . 39 . Critical Kills . | . . . Critical Parts Destroyed . | . . . Critical Strikes 1 | . 1 . Burn 1 | . 1 . Melee Attacks . | . . . Impact . | . . . Slashing . | . . . Piercing . | . . . Sneak Attacks . | . . . Combat Hostiles . | . . . Follow-up Attacks . | . . . Damage Inflicted 1015 | . 1015 . Guns 1003 | . 1003 . Cannons . | . . . Explosions 12 | . 12 . Melee . | . . . Ramming . | . . . Kinetic 340 | . 340 . Thermal 663 | . 663 . Explosive . | . . . Electromagnetic 12 | . 12 . Impact . | . . . Slashing . | . . . Piercing . | . . . Highest Corruption 4 | . 4 4 Average Corruption 3 | . 3 4 Corruption Purged . | . . . Corruption Blocked . | . . . Effects 20 | . 16 4 Message Errors 6 | . 6 . Matter Fused 7 | . 5 2 Heat Flow Errors 2 | . 2 . Data Loss (minor) 2 | . 1 1 Data Loss (major) 2 | . 2 . Misfires 1 | . . 1 Overload Shots . | . . . Overflow Damage . | . . . Projectiles . | . . . Explosions . | . . . Melee . | . . . Knockbacks . | . . . Impact . | . . . Kinetic . | . . . Secondary . | . . . Self-Inflicted Damage . | . . . Shots . | . . . Rammed . | . . . Targets Rammed . | . . . Kicked . | . . . Crushed . | . . . Highest Temperature 147 | . 147 42 Average Temperature 39 | . 40 17 Received Heat Transfer 246 | . 144 102 Siege Activations . | . . . Robots Corrupted . | . . . Combat Hostiles . | . . . Parts Fried . | . . . Impact Corruptions . | . . . Robots Melted . | . . . Combat Hostiles . | . . . Parts Melted 1 | . 1 . Heat Transferred 1901 | . 1901 . Parts Sabotaged . | . . . Parts Stolen . | . . . Parts Stripped . | . . . Power Chain Reactions . | . . . Alert | -11 -10 -10 ------- Run | Yrd Mat Sub Peak Influence 213 | . 213 . Initial . | . . . Average 91 | . 94 . Maximum Alert Level 1 | . 1 . Low Security (%) 97 | 100 97 . Level 1 2 | . 2 . Level 2 . | . . . Level 3 . | . . . Level 4 . | . . . Level 5 . | . . . High Security . | . . . Max Security . | . . . Squads Dispatched 3 | . 3 . Investigation 1 | . 1 . Extermination . | . . . Reinforcement 2 | . 2 . Assault . | . . . Garrison . | . . . Intercept . | . . . Searches Triggered . | . . . Construction Impeded . | . . . Haulers Reinforced . | . . . Active Scanning Responses . | . . . Cargo Convoy Interrupts . | . . . Stealth | -11 -10 -10 --------- Run | Yrd Mat Sub Distress Signals . | . . . Communications Jammed . | . . . Distress Signals . | . . . Times Spotted 25 | . 24 1 Peak Tracking Total 3 | . 3 1 Tactical Retreats 2 | . 2 . Traps | -11 -10 -10 ------- Run | Yrd Mat Sub Traps Triggered 2 | . 2 . Indirectly . | . . . Trap Hack Attempts . | . . . Triggered . | . . . Disarmed . | . . . Reprogrammed . | . . . Reused . | . . . Traps Extracted . | . . . Installed . | . . . Triggered . | . . . Machines | -11 -10 -10 ---------- Run | Yrd Mat Sub Machines Disabled 1 | . 1 . Max in Single Turn 1 | . 1 . Machines Repaired . | . . . Machines Dismantled . | . . . Machines Sabotaged . | . . . Overloaded Fab Kills . | . . . Hacking | -11 -10 -10 --------- Run | Yrd Mat Sub Machines Accessed 3 | . 3 . Terminals 3 | . 3 . Fabricators . | . . . Repair Stations . | . . . Recycling Units . | . . . Scanalyzers . | . . . Garrison Access . | . . . Total Hacks 10 | . 10 . Successful 7 | . 7 . Failed 3 | . 3 . Catastrophic . | . . . Database Lockouts . | . . . Manual . | . . . Terminals 10 | . 10 . Fabricators . | . . . Repair Stations . | . . . Recycling Units . | . . . Scanalyzers . | . . . Garrison Access . | . . . Terminal Hacks 7 | . 7 . Record 1 | . 1 . Robot Analysis 1 | . 1 . Branch Access Points 1 | . 1 . Terminal Index 1 | . 1 . Locate Traps 2 | . 2 . Dispatch Records 1 | . 1 . Fabricator Hacks . | . . . Repair Station Hacks . | . . . Recycling Unit Hacks . | . . . Scanalyzer . | . . . Garrison Access Hacks . | . . . Unauthorized Hacks . | . . . Terminals . | . . . Fabricators . | . . . Repair Stations . | . . . Recycling Units . | . . . Scanalyzers . | . . . Garrison Access . | . . . Data Cores Recovered 1 | . 1 . Used . | . . . Hacking Detections 2 | . 2 . Full Trace Events 1 | . 1 . Feedback Events . | . . . Feedback Blocked . | . . . Robot Schematics Acquired . | . . . Robots Built . | . . . Authchips . | . . . Time . | . . . Total Robot Build Rating . | . . . Part Schematics Acquired . | . . . Parts Built . | . . . Authchips . | . . . Time . | . . . Total Part Build Rating . | . . . Parts Repaired . | . . . Time . | . . . Parts Recycled . | . . . Recycled Matter . | . . . Retrieved Matter . | . . . Retrieved Components . | . . . Parts Scanalyzed . | . . . Part Schematics Acquired . | . . . Parts Damaged . | . . . Bothacking | -11 -10 -10 ------------ Run | Yrd Mat Sub Used RIF Installer . | . . . Robots Hacked . | . . . Non-combat . | . . . Combat . | . . . Robot Hacks Applied . | . . . Relay Couplers Released . | . . . Fabnet Peak Effective % . | . . . Robots Rewired . | . . . Allies Hacked . | . . . Hacks Repelled . | . . . Allies | -11 -10 -10 -------- Run | Yrd Mat Sub Total Allies . | . . . Largest Group . | . . . Highest-Rated Group . | . . . Highest-Rated Ally . | . . . Total Orders . | . . . Ally Attacks . | . . . Total Damage . | . . . Kills . | . . . Allies Corrupted . | . . . Allies Melted . | . . . Intel | -11 -10 -10 ------- Run | Yrd Mat Sub Robot Analysis Total 1 | . 1 . Derelict Logs Recovered . | . . . Drone Launches . | . . . Drone Recoveries . | . . . Exploration | -11 -10 -10 ------------- Run | Yrd Mat Sub Turns Passed 1321 | 40 1128 153 Spaces Moved 939 | 33 808 98 Core 5 | 4 1 . Treads . | . . . Legs . | . . . Wheels 934 | 29 807 98 Hover . | . . . Flight . | . . . Fastest Speed 50 | 50 90 105 Average Speed 103 | 93 103 105 Slowest Speed 400 | 100 400 145 Overloaded Moves . | . . . Propulsion Burnouts . | . . . Robots Hopped . | . . . Cave-ins Triggered . | . . . Exploration Rate (%) 36 | 3 97 8 Regions Visited 2 Branch Regions 1 Pre-discovered Areas . | . . . Known Exits Taken . | . . . Unknown Exits Taken 2 | 1 1 . Scrap Searched . | . . . Spaces Dug . | . . . Terrain Destroyed . | . . . Melee . | . . . Projectile . | . . . AOE . | . . . Terrain Rammed . | . . . Walls Destroyed . | . . . Machines Disabled . | . . . Actions | -11 -10 -10 --------- Run | Yrd Mat Sub Total 1131 | 38 974 119 Wait 74 | . 69 5 Move 937 | 32 807 98 Hop . | . . . Pick Up 16 | . 16 . Fast Attach 9 | 6 3 . Attach 3 | . 3 . Detach . | . . . Swap 9 | . 8 1 Drop 6 | . 6 . Fire 77 | . 62 15 Melee . | . . . Ram . | . . . Kick . | . . . Crush . | . . . Escape Stasis . | . . . Rewire . | . . . Trap . | . . . Miscellaneous . | . . . Route ------- -11/Scrapyard -10/Materials (discovered 5 exits: [*Mat x3] / *Min / [*Sub]) -10/Subcaves History --------- Turn | Location | Event 22 | -11/Scrapyard | Discovered new exit (range 15) 41 | -11/Scrapyard | Entered Materials 126 | -10/Materials | Identified exit to Mines 309 | -10/Materials | Build established: Mutant 418 | -10/Materials | Discovered new exit (range 12) 643 | -10/Materials | Discovered new exit (range 4) 843 | -10/Materials | Lost 3 parts (1p1n1w) 964 | -10/Materials | Discovered new exit (range 3) 1007 | -10/Materials | Core integrity fell below 50% 1159 | -10/Materials | Discovered new exit (range 10) 1169 | -10/Materials | Entered Subcaves 1309 | -10/Subcaves | Core integrity fell below 20% 1322 | -10/Subcaves | Destroyed by PZ-R0D(R) with Subdweller Laser Last Messages --------------- 01071_ Acquired Particle Cannon. 01075_ R-06 Scavenger collects Lgt. Ion Engine. 01077_ Acquired Particle Cannon. 01096_ System corrupted: Substantial component data lost. 01116_ Acquired 3 matter. 01117_ K-01 Serf cleans the Integration Channel. 01132_ Acquired 21 matter. 01144_ TK5LZH:B6VGT>EZ&T 8I9PEO84WSB/IEY 01159_ EXIT=FOUND LOCATION=UNKNOWN AMBIENT_HEAT=-10 GOAL=ESCAPE 01232_ System corrupted: Component data lost. 01266_ System corrupted: Matter fused (-6). 01276_ Wheel destroyed. 01280_ Com. Wheel destroyed. 01284_ System corrupted: FCS attempts to trigger Spread Laser. 01284_ System corrupted: Spread Laser misfires. 01318_ System corrupted: Matter fused (-10). 01320_ Imp. Heat Sink destroyed. Map ----- +----------------------------------------------------+ | ?????????????????????????????????????????????????? | | ?????????????????????????????????????????????????? | | ?????????????????????????????????????????????????? | | ?????????????????????????????????????????????????? | | ?????????????????????????????????????????????????? | | ?????????????????????????????????????????????????? | | ?????????????????????????????????????????????????? | | ?????????????????????????????????????????????????? | | ?????????????????????????????????????????????????? | | ?????????????????????????????????????????????????? | | ?????????????????????????????????????????????????? | | ?????????????????????????????????????????????????? | | ?????????????????????????????????????????????????? | | ?????????????????????????????????????????????????? | | ?????????????????????????????????????????????????? | | ?????????????????????????????????????????????????? | | ?????????????????????????????????????????????????? | | ???????????????????#????????? ?"?????????????????? | | ???????????????????# ???????#"" ????????????????? | | ???????????????????# "???###"" ????????????????? | | ???????????????????? "???""" ?????????????????? | | ????????????????????#" ??"" ?????????????????? | | ????????????????????#" ??""""""??????????????????? | | ???????????????????##" ?# ""#???????????????????? | | ???????????????????# """## R"##??????????????????? | | ???????????????????# " @ """#??????????????????? | | ???????????????????##" """#??????????????????? | | ????????????????????## "#######????????????? | | ?????????????????????## "" #????????????? | | ??????????????????##### "" #????????????? | | ??????????????????# #????????????? | | ??????????????????# ####????????????? | | ??????????????????# ##???????????????? | | ??????????????????## ## #????????????????? | | ???????????????????# #?## ##???????????????? | | ???????????????????#####???# ##??????????????? | | ??????????????????#####????## ###????????????? | | ??????????????????# #????# #????????????? | | ?????????????????# ##### #????????????? | | ?????????????????# #????????????? | | ?????????????????????### #????????????? | | ???????????????????????## #????????????? | | ????????????????????????# #????????????? | | ????????????????????????## ##????????????? | | ?????????????????????????## #####?????????????? | | ??????????????????????????## ##?????????????????? | | ??????????????????????????## #??????????????????? | | ?????????????????????## ### ####???????????????? | | ?????????????????????# ##??????????????? | | ??????????????? #??????????????? | +----------------------------------------------------+ Best States ------------- Heat Dissipation 39 Energy Generation 10 Energy Capacity 250 Matter Stores 300 Matter Capacity 300 Sight Range 16 Terrain Scan Density 10 Evasion (%) 42 Offensive Hacking 10 Item Schematics ----------------- None Robot Schematics ------------------ None Fabricated ------------ Nothing Alien Tech Used ----------------- None Achievements -------------- None Challenges ------------ None Game ------ Seed GrapheneProtonFlail Manual? 0 Play Time 00:14:26 Cumulative 272.4 hours Start 2024.04.21 @ 18:40:38 End 2024.04.21 @ 19:00:02 Sessions 1 Manual Loads 0 Difficulty Rogue Special Mode None Game No. 211 Rogue 199 Adventurer 12 Explorer 0 Win Type - Total 1 Types 1/0/0/0/0/0/0/0/0 Lore% 33 Gallery% 50 Achievement% 37 Wizard Run 0 Options --------- Layout 1 ASCII 0 Keyboard 0 Movement Mouse Keybinds 0 Fullscreen 1 Font 32/SmallcapsGlow Map View 77x35 Zoom Use 0% Tactical HUD 1 Map Filters NONE Filters NONE Steam 1 RUN: 046fb074-d80e-439c-9466-3950e99b02ff